[Event "GER-ch Youth-U16 2022"]
[Site "Willingen"]
[Date "2022.06.05"]
[Round "1.1"]
[White "Gluma, Christian"]
[Black "Lutsko, Artem"]
[Result "0-1"]
[ECO "B92"]
[WhiteElo "2012"]
[BlackElo "2392"]
[Annotator "TA"]
[PlyCount "116"]
[EventDate "2022.06.05"]
[EventType "swiss"]
[EventRounds "9"]
[EventCountry "GER"]
[SourceTitle "playchess.com"]
[Source "ChessBase"]
[SourceQuality "1"]
[TimeControl "40/4500+30:900+30"]

{[%evp 21,116,0,-8,-10,-6,-49,-32,-29,-18,-49,0,11,84,102,94,94,81,95,103,95,72,48,50,18,24,17,8,-18,-7,-9,-9,-9,-8,-12,-12,-9,-17,-17,-10,-25,-12,-44,-45,-72,-39,-149,-100,-128,-72,-80,-80,-342,-342,-439,-361,-505,-491,-491,-479,-632,-476,-2215,-2560,-2173,-1960,-1385,-1285,-29966,-29968,-29964,-29967,-29968,-29969,-29969,-29970,-29973,-29973,-29973,-29972,-29975,-29972,-29973,-29970,-29970,-29970,-29970,-29972,-29971,-29973,-29974,-29975,-29974,-29972,-29981,-29982,-29981,-29973]} 1. e4 {[%emt 0:00:00]} c5 {[%emt 0:00:00]} 2. Nf3 {[%emt 0:00:00]} d6 {[%emt 0:00:00]} 3. d4 {[%emt 0:00:00]} cxd4 {[%emt 0:00:00]} 4. Nxd4 {[%emt 0:00:00]} Nf6 {[%emt 0:00:00]} 5. Nc3 {[%emt 0:00:00]} a6 {[%emt 0:00:00]} 6. Be2 {[%emt 0:00:00]} e5 {[%emt 0:00:00]} 7. Nb3 {[%emt 0:00:00]} Be7 {[%emt 0:00:00]} 8. Be3 {[%emt 0:00:00]} Be6 {[%emt 0:00:00]} 9. a4 {[%emt 0:00:00]} Nc6 {[%emt 0:00:00]} 10. O-O {[%emt 0:08:36]} O-O {[%emt 0:00:00]} 11. Qd2 {[%emt 0:04:52]} Rc8 {[%emt 0:05:45]} 12. Rfd1 {[%emt 0:08:29] B92: Sicilian Najdorf: 6 Be2.} Nb4 {[%emt 0:02:59]} 13. Rac1 {[%emt 0:10:52]} d5 {[%emt 0:20:10]} (13... Rxc3 $5 14. Qxc3 Na2 $15) 14. exd5 {[%emt 0:03:07] Black is slightly better.} Nfxd5 {[%emt 0:01:38]} 15. Nxd5 {[%emt 0:06:10]} Bxd5 {[%emt 0:01:18] [#]} (15... Nxd5 $15 16. Qe1 Qe8) 16. Nc5 $146 {[%emt 0:07:23]} ({Predecessor:} 16. c4 Bc6 17. Qxd8 Rfxd8 18. Na5 Rxd1+ 19. Bxd1 Nd3 20. Nxc6 bxc6 21. Rb1 Rb8 22. b3 {0-1 (64) Corredor Castellanos,C (1857)-Vargas,M (1987) Bogota 2012}) 16... Na2 {[%emt 0:17:32] [#]} (16... Bxc5 $11 {keeps the balance.} 17. Bxc5 Rxc5 18. Qxb4 Rc7) 17. Ra1 $1 $16 {[%emt 0:19:34][%cal Oc2c4]} Bxc5 {[%emt 0:00:04]} 18. Bxc5 {[%emt 0:03:13]} ({Stronger than} 18. Qxd5 Qxd5 19. Rxd5 Bxe3 $15) 18... Rxc5 {[%emt 0:00:04] [#]} 19. Bf3 $1 {[%emt 0:02:10][%cal Rf3d5]} Qb6 {[%emt 0:02:36]} 20. Bxd5 {[%emt 0:01:02]} Nb4 {[%emt 0:00:03]} 21. Be4 {[%emt 0:01:55]} (21. a5 $5 Rxa5 22. Rxa5 Qxa5 23. Bxb7 $16) 21... f5 {[%emt 0:24:41]} 22. c3 {[%emt 0:00:34]} (22. a5 $5 {[%cal Ra5b6]} Qc7 23. Qxb4 fxe4 24. Rd2 $14) 22... fxe4 {[%emt 0:00:02]} 23. cxb4 {[%emt 0:00:13]} Rc6 {[%emt 0:00:29]} 24. Rf1 Qd4 {[%emt 0:01:56]} (24... Rd6 {looks sharper.} 25. Qg5 Rdf6 26. Qd2 Qd4) 25. Rad1 {[%emt 0:04:49]} Qxd2 {[%emt 0:00:34]} 26. Rxd2 $11 {[%emt 0:00:06][%mdl 4096] Endgame KRR-KRR} Rc4 {[%emt 0:00:03]} 27. b5 {[%emt 0:01:06]} Rxa4 {[%emt 0:00:45]} 28. bxa6 {[%emt 0:01:02]} bxa6 {[%emt 0:00:02]} 29. g3 {[%emt 0:01:05]} Rd4 {[%emt 0:04:42]} 30. Rc2 {[%emt 0:00:30]} a5 {[%emt 0:00:03]} 31. Ra1 {[%emt 0:01:43]} a4 {[%emt 0:00:34]} 32. Ra3 {[%emt 0:01:04]} Rf3 {[%emt 0:00:11] Against b3} 33. Rcc3 {[%emt 0:01:02] [#]} ({White should play} 33. Kg2 $1 $15) 33... Rb4 {[%emt 0:02:53] Black is more active.} ({Better is} 33... Rd2 $1 34. Rxf3 exf3 35. Rxf3 Rxb2) 34. Rc7 {[%emt 0:01:05]} Rxa3 {[%emt 0:02:50]} ({Worse is} 34... Rxb2 35. Rxa4 Rbxf2 36. Rxe4 $15) ({Black should try} 34... h5 35. Ra2 Rd4) 35. bxa3 $17 {[%emt 0:00:05] KR-KR} Rb3 {[%emt 0:00:03]} 36. Ra7 $2 {[%emt 0:00:52][%mdl 8192] Now White is beyond hope.} (36. Rc4 $17 {was the only chance.}) 36... Rxa3 $19 {[%emt 0:00:06]} 37. Kf1 {[%emt 0:00:19]} Ra2 {[%emt 0:00:21] And now ...h5 would win.} 38. Ke1 {[%emt 0:00:33]} h5 {[%emt 0:00:52]} 39. h3 {[%emt 0:00:51]} Kh7 {[%emt 0:01:11]} 40. Ra6 {[%emt 0:00:14]} a3 {[%emt 0:00:27] Threatens to win with ...Ra1+.} 41. Kd1 {[%emt 0:15:44]} (41. Kf1 $142) 41... Rxf2 {[%emt 0:15:22] ( -> ...a2)} 42. Rxa3 {[%emt 0:00:12]} Rf3 {[%emt 0:00:03]} 43. Ra4 {[%emt 0:00:44]} Rxg3 {[%emt 0:00:06]} 44. Rxe4 {[%emt 0:00:09]} Rxh3 {[%emt 0:00:09] Black mates.} 45. Ke2 {[%emt 0:00:11]} g5 {[%emt 0:00:45]} 46. Rxe5 {[%emt 0:00:09]} Kg6 {[%emt 0:00:03]} 47. Kf2 {[%emt 0:00:12]} h4 {[%emt 0:00:07]} 48. Ra5 {[%emt 0:00:10]} Rb3 {[%emt 0:00:26]} 49. Kg2 {[%emt 0:00:16]} Re3 {[%emt 0:00:40]} 50. Rb5 {[%emt 0:00:09]} Kh5 {[%emt 0:00:53]} 51. Rb8 {[%emt 0:00:13]} Kg4 {[%emt 0:00:13]} 52. Rb4+ {[%emt 0:00:12]} Kf5 {[%emt 0:00:04]} 53. Rb5+ {[%emt 0:00:12]} Kf4 {[%emt 0:00:04]} 54. Rb4+ {[%emt 0:00:20]} Re4 {[%emt 0:00:03]} 55. Rb8 {[%emt 0:00:31]} Re2+ {[%emt 0:00:47]} 56. Kf1 {[%emt 0:00:17]} Ra2 {[%emt 0:00:04]} 57. Rb3 {[%emt 0:00:41]} g4 {[%emt 0:00:26]} 58. Kg1 {[%emt 0:00:19]} Re2 {[%emt 0:00:11] Weighted Error Value: White=0.73/Black=0.20 (precise)} 0-1

[Event "GER-ch Youth-U16 2022"]
[Site "Willingen"]
[Date "2022.06.05"]
[Round "1.2"]
[White "Petrovskyi, Vadym"]
[Black "Stork, Christopher"]
[Result "1-0"]
[ECO "B28"]
[WhiteElo "2330"]
[BlackElo "1994"]
[Annotator "TA"]
[PlyCount "63"]
[EventDate "2022.06.05"]
[EventType "swiss"]
[EventRounds "9"]
[EventCountry "GER"]
[SourceTitle "playchess.com"]
[Source "ChessBase"]
[SourceQuality "1"]
[TimeControl "40/4500+30:900+30"]

{[%evp 10,63,30,23,49,47,46,40,58,38,36,43,62,47,83,77,77,62,93,97,129,132,143,127,146,90,148,158,154,153,267,273,274,168,234,152,205,192,176,168,223,248,487,335,1202,1194,1158,1141,1852,1834,29986,29987,29987,1530,2624,2141]} 1. e4 {[%emt 0:00:00]} c5 {[%emt 0:00:00]} 2. Nf3 {[%emt 0:00:00]} a6 {[%emt 0:00:00]} 3. c4 {[%emt 0:00:00]} Nc6 {[%emt 0:00:00]} 4. d4 {[%emt 0:00:00]} cxd4 {[%emt 0:00:00]} 5. Nxd4 {[%emt 0:00:00]} e5 {[%emt 0:00:00]} 6. Nf5 {[%emt 0:00:00]} d6 {[%emt 0:00:00] B28: Sicilian: 2 Nf3 a6 (O'Kelly Variation).} (6... d5 {keeps more tension.} 7. cxd5 Bxf5 8. exf5 Nd4) 7. Ne3 {[%emt 0:00:00]} g6 {[%emt 0:00:00]} 8. Nc3 {[%emt 0:00:00]} Bh6 {[%emt 0:00:00] White is slightly better.} 9. Nc2 {[%emt 0:00:00] 9.Bd3 gains popularity.} Bxc1 {[%emt 0:00:00]} 10. Rxc1 {[%emt 0:00:00]} Be6 {[%emt 0:03:59]} 11. Qd2 {[%emt 0:00:30]} Nge7 {[%emt 0:14:21]} 12. Be2 {[%emt 0:05:29]} O-O {[%emt 0:02:13][%cal Ob7b5]} 13. O-O {[%emt 0:10:21]} Qd7 {[%emt 0:08:01] [#]} 14. Rfd1 $146 {[%emt 0:01:39]} ({Predecessor:} 14. Rcd1 Rad8 15. b3 f5 16. exf5 Nxf5 17. Bd3 Nfd4 18. Be4 Nxc2 19. Qxc2 Nd4 20. Qd3 {½-½ (43) Giri,A (2764)-Artemiev,V (2708) Chess.com INT 2020}) 14... Rfd8 {[%emt 0:11:03]} 15. Nd5 {[%emt 0:01:38]} Bxd5 {[%emt 0:00:39]} 16. cxd5 {[%emt 0:00:02]} Na7 {[%emt 0:06:18]} 17. Ne3 {[%emt 0:00:31]} (17. f4 $142) 17... Kg7 {[%emt 0:04:30]} (17... Rf8 $142) 18. Bg4 $16 {[%emt 0:01:59]} (18. Ng4 Ng8 $14) 18... Qe8 {[%emt 0:01:09]} 19. Rc7 $36 {[%emt 0:03:09][%mdl 2048] And now a4 would win. Keeping Black busy. 0x0.001e35dd40e4dp-1022s more active pieces. The black rooks are badly placed.} Rab8 {[%emt 0:03:08]} (19... Nb5 $16 20. Rxb7 Rdb8 21. Rxb8 Rxb8) 20. a4 $1 $18 {[%emt 0:01:43]} Nac8 {[%emt 0:01:21]} 21. Rdc1 {[%emt 0:06:22]} Ng8 {[%emt 0:08:25]} (21... Nb6 {was worth a try.} 22. Qb4 Nxa4) 22. b3 {[%emt 0:02:02][%cal Bb2b3,Bb3b4][%mdl 32] Threatens to win with Be6.} Nce7 {[%emt 0:01:50]} (22... Nb6 $16 23. f3 Na8) 23. Bh3 {[%emt 0:04:16]} Nf6 {[%emt 0:01:13]} 24. f3 {[%emt 0:00:44]} b5 {[%emt 0:02:52]} (24... Qf8 {was necessary.} 25. Qb4 b5) 25. a5 {[%emt 0:00:53]} Nd7 $2 {[%emt 0:02:22] [#]} (25... Ra8 {might work better.} 26. Qe1 Kh8) 26. b4 {[%emt 0:09:53]} ({Weaker is} 26. Ng4 Ng8 27. b4 Qe7 $18) 26... Rbc8 $2 {[%emt 0:02:04]} (26... Nf6 27. Ng4 Nh5) 27. Bxd7 {[%emt 0:00:56]} Rxd7 {[%emt 0:00:02]} 28. Rxc8 {[%emt 0:00:09][%cal Oe3g4]} Nxc8 {[%emt 0:00:01]} 29. Ng4 {[%emt 0:00:09] [#] White wants to mate with Qh6+.} f5 {[%emt 0:03:53]} 30. Qh6+ {[%emt 0:00:13]} Kf7 {[%emt 0:00:15]} 31. Rxc8 {[%emt 0:00:40]} Qxc8 {[%emt 0:00:05]} 32. Qxh7+ {[%emt 0:00:06] Weighted Error Value: White=0.20 (precise) /Black=0.64} 1-0

[Event "GER-ch Youth-U16 2022"]
[Site "Willingen"]
[Date "2022.06.05"]
[Round "1.3"]
[White "Bungarten, Jona"]
[Black "Farokhi, Keyvan"]
[Result "0-1"]
[ECO "B21"]
[WhiteElo "1843"]
[BlackElo "2360"]
[Annotator "TA"]
[PlyCount "44"]
[EventDate "2022.06.05"]
[EventType "swiss"]
[EventRounds "9"]
[EventCountry "GER"]
[SourceTitle "playchess.com"]
[Source "ChessBase"]
[SourceQuality "1"]
[TimeControl "40/4500+30:900+30"]

{[%evp 13,44,-16,-18,-24,-13,-29,-20,-22,-18,-18,-13,-39,-16,-16,0,0,-5,-99,-92,-201,-141,-155,-145,-319,-318,-979,-521,-518,-520,-1087,-1081,-29994,-1847]} 1. e4 {[%emt 0:00:00]} c5 {[%emt 0:00:00]} 2. d4 {[%emt 0:00:00]} cxd4 {[%emt 0:00:00]} 3. c3 {[%emt 0:00:00]} dxc3 {[%emt 0:00:00]} 4. Nxc3 {[%emt 0:00:00]} Nc6 {[%emt 0:00:00]} 5. Nf3 {[%emt 0:00:00]} e6 {[%emt 0:00:00]} 6. Bc4 {[%emt 0:00:00]} Bb4 {[%emt 0:00:00]} 7. O-O {[%emt 0:00:00]} Nge7 $1 {[%emt 0:00:00] 7...Nge7 scores better than 7...Bxc3.} 8. Nb5 {[%emt 0:00:00] B21: Sicilian: 2 f4 and Morra Gambit.} d5 {[%emt 0:00:00]} 9. exd5 {[%emt 0:00:00]} (9. a3 {feels hotter.} Ba5 10. exd5 exd5 11. Bd3) 9... exd5 {[%emt 0:00:00]} 10. Bxd5 {[%emt 0:00:00] The position is equal.} Nxd5 {[%emt 0:00:00]} 11. Qxd5 {[%emt 0:00:00]} O-O {[%emt 0:00:00]} 12. Qh5 {[%emt 0:01:50]} Qa5 {[%emt 0:16:51] White must now prevent ...a6.} 13. a3 {[%emt 0:14:13][%cal Oa3b4]} (13. Ng5 $2 h6 14. Ne4 a6 15. Bxh6 Qxb5 $19) 13... a6 {[%emt 0:06:39] And now ...Be7 would win.} 14. axb4 {[%emt 0:00:18]} Qxa1 {[%emt 0:00:14]} 15. Nc7 {[%emt 0:04:35] [#]} (15. Nc3 $1 $11) 15... Rb8 $1 $17 {[%emt 0:02:33] [#]} 16. Ne5 $146 {[%emt 0:26:43]} (16. Bf4 $17 Qxb2 17. Bd6) ({Predecessor:} 16. Ng5 Bf5 17. Nd5 Qa2 18. Ne3 Bg6 19. Qf3 Nxb4 20. h4 h6 21. h5 Bd3 22. Ne4 Bxf1 {0-1 (34) Hng,M (2013)-Li,X (2167) Chess.com INT 2021}) 16... Qb1 {[%emt 0:03:12]} (16... Nxb4 $2 {[#]} 17. Bh6 $1 Qxf1+ 18. Kxf1 gxh6 19. Ng4 (19. Qxh6 f6 $16) 19... Bxg4 20. Qxg4+ Kh8 21. Qxb4 $18) 17. Nxa6 {[%emt 0:07:22] Strongly threatening Nxc6.} Ra8 $36 {[%emt 0:05:24][%mdl 2048] Black is really pushing.} ({And not} 17... Bg4 18. Nxg4 bxa6 19. Bf4 Qxb2 20. Bxb8 Rxb8 21. Qg5 $15) 18. Nc7 {[%emt 0:00:28] This costs White the game.} (18. Nxc6 $17 {was worth a try.} bxc6 19. Nc5) 18... Ra1 $19 {[%emt 0:00:25]} 19. g4 $2 {[%emt 0:07:37]} (19. Nxc6 bxc6 20. Qc5) 19... Nxe5 {[%emt 0:01:46]} 20. Qxe5 {[%emt 0:00:12]} Bxg4 {[%emt 0:00:23] aiming for ...Bh3.} 21. Nd5 {[%emt 0:03:37]} (21. h4 $142 Qg6 22. h5 Bxh5+ 23. Kh2) 21... Bh3 {[%emt 0:00:38] ( -> ...Qxc1)} 22. Qd6 {[%emt 0:01:38]} Bxf1 {[%emt 0:01:01] Weighted Error Value: White=1.44/Black=0.39} (22... Qxc1 $142 23. Ne7+ Kh8 24. Ng6+ hxg6 25. Qxf8+ Kh7 26. Qh8+ Kxh8 27. Rxc1 Rxc1#) 0-1

[Event "GER-ch Youth-U16 2022"]
[Site "Willingen"]
[Date "2022.06.05"]
[Round "1.4"]
[White "Sidletskyi, Ivan"]
[Black "Heinrich, John"]
[Result "1-0"]
[ECO "B47"]
[WhiteElo "2084"]
[BlackElo "2011"]
[Annotator "TA"]
[PlyCount "83"]
[EventDate "2022.06.05"]
[EventType "swiss"]
[EventRounds "9"]
[EventCountry "GER"]
[SourceTitle "playchess.com"]
[Source "ChessBase"]
[SourceQuality "1"]
[TimeControl "40/4500+30:900+30"]

{[%evp 16,83,48,10,45,14,18,-14,25,27,25,0,27,-16,-21,-18,-6,-100,8,23,38,52,44,58,100,31,48,49,47,37,79,48,150,156,175,161,173,71,62,64,70,65,60,67,71,29,60,46,54,27,175,166,161,170,185,183,170,171,235,250,242,213,218,181,174,166,272,278,307,299]} 1. e4 {[%emt 0:00:00]} c5 {[%emt 0:00:00]} 2. Nf3 {[%emt 0:00:00]} e6 {[%emt 0:00:00]} 3. d4 {[%emt 0:00:00]} cxd4 {[%emt 0:00:00]} 4. Nxd4 {[%emt 0:00:00]} Nc6 {[%emt 0:00:00]} 5. Nc3 {[%emt 0:00:00]} Qc7 {[%emt 0:00:00]} 6. g3 {[%emt 0:00:00]} a6 {[%emt 0:00:00]} 7. Bg2 {[%emt 0:00:00]} Nf6 {[%emt 0:00:00]} 8. O-O {[%emt 0:00:00]} d6 {[%emt 0:00:00] 8...Nxd4 is a critical line.} 9. Be3 {[%emt 0:00:00]} Bd7 {[%emt 0:00:00] B80: Sicilian Scheveningen: 6 g3 and 6 Be3, including English Attack.} 10. h3 {[%emt 0:04:29]} Rc8 {[%emt 0:01:16]} 11. f4 {[%emt 0:10:29]} b5 {[%emt 0:07:41] [#] The position is equal.} 12. Nb3 $146 {[%emt 0:08:37]} ({Predecessor:} 12. a3 h5 13. Nb3 Be7 14. Qd2 Rb8 15. Qe2 b4 16. axb4 Nxb4 17. Ra3 d5 18. e5 {0-1 (35) Paleologu,V (2193)-Tesic,D (2403) Milan 2010}) 12... Be7 {[%emt 0:30:37]} 13. Qd2 {[%emt 0:05:50]} O-O {[%emt 0:13:18]} 14. Rad1 {[%emt 0:05:01]} b4 {[%emt 0:06:13]} 15. Ne2 {[%emt 0:07:39]} a5 {[%emt 0:02:19]} 16. c4 {[%emt 0:03:41]} (16. g4) (16. g4 $11) 16... bxc3 {[%emt 0:01:42]} (16... a4 $17 17. Nbc1 Na5) 17. Nxc3 $11 {[%emt 0:00:27]} Qb8 {[%emt 0:04:32] Against Nb5} 18. g4 {[%emt 0:09:16]} h6 {[%emt 0:02:47]} 19. Qf2 {[%emt 0:03:59]} Qb4 {[%emt 0:01:22]} 20. Nc1 {[%emt 0:04:53]} (20. g5 $16 hxg5 21. e5 (21. fxg5 Nh7 $11) 21... gxf4 22. exf6 fxe3 23. Qxe3 (23. Qg3 Bxf6 24. Rxf6 d5 $14)) 20... a4 {[%emt 0:02:34]} 21. Nd3 {[%emt 0:02:34]} Qa5 {[%emt 0:00:23]} 22. a3 {[%emt 0:03:22]} Nh7 {[%emt 0:01:02]} 23. Kh2 {[%emt 0:04:24][%cal Od3c5]} Bf6 {[%emt 0:01:23]} ({Better is} 23... Be8 $14) 24. Bb6 $16 {[%emt 0:01:02]} Qa6 {[%emt 0:00:33]} 25. e5 $1 {[%emt 0:03:47]} dxe5 {[%emt 0:01:45]} 26. Nc5 {[%emt 0:01:25]} (26. Bc5 $18 {has better winning chances.} Rfd8 27. Bb6 (27. fxe5 Nxe5 28. Nb4 Qc4 $15)) 26... Qxb6 {[%emt 0:00:24]} 27. Nxd7 {[%emt 0:00:02]} Qxf2 {[%emt 0:00:56]} 28. Rxf2 {[%emt 0:00:02]} Bh4 {[%emt 0:02:17]} 29. Rfd2 $36 {[%emt 0:02:53][%mdl 2048] Black is under pressure.} Rfe8 {[%emt 0:00:36]} 30. Nb6 {[%emt 0:00:39] White is more active.} (30. fxe5 Bg5 $11) (30. Nxe5 $6 Nxe5 31. fxe5 Bg5 $11) 30... exf4 {[%emt 0:00:54][%cal Oc6e5]} 31. Nxc8 {[%emt 0:00:10]} Rxc8 {[%emt 0:00:10]} 32. Ne2 $1 {[%emt 0:02:32] And now Rc2 would win.} e5 {[%emt 0:01:03] [#] This costs Black the game.} (32... Ne5 $11 {and Black is okay.} 33. Nxf4 Bg5) 33. Rc2 $1 $18 {[%emt 0:00:25]} Ne7 {[%emt 0:00:42]} 34. Rxc8+ {[%emt 0:00:02]} Nxc8 {[%emt 0:00:05]} 35. Rd5 {[%emt 0:01:21]} Bf6 {[%emt 0:00:51]} 36. Nc3 {[%emt 0:00:44][%mdl 1024] White has strong compensation.} Nb6 {[%emt 0:01:09]} (36... Ng5 $142 37. Ra5 (37. Nxa4 Ne7 $16) 37... Nb6) 37. Rb5 {[%emt 0:00:48]} Nc4 {[%emt 0:00:20]} 38. Rb8+ {[%emt 0:00:08]} ({Don't take} 38. Nxa4 $6 Ng5) 38... Nf8 {[%emt 0:00:07]} 39. Kg1 {[%emt 0:03:12]} e4 {[%emt 0:00:59]} 40. Bxe4 {[%emt 0:00:28]} Bd4+ {[%emt 0:01:53]} (40... Be5 {was worth a try.} 41. Re8 Bd4+ 42. Kg2 Nxb2) 41. Kg2 {[%emt 0:15:36]} Ne3+ {[%emt 0:00:00]} 42. Kf3 {Weighted Error Value: White=0.17 (very precise) /Black=0.32} 1-0

[Event "GER-ch Youth-U16 2022"]
[Site "Willingen"]
[Date "2022.06.05"]
[Round "1.5"]
[White "Spriestersbach, Kai"]
[Black "Laux, Dominik"]
[Result "0-1"]
[ECO "B90"]
[WhiteElo "1948"]
[BlackElo "2263"]
[Annotator "TA"]
[PlyCount "62"]
[EventDate "2022.06.05"]
[EventType "swiss"]
[EventRounds "9"]
[EventCountry "GER"]
[SourceTitle "playchess.com"]
[Source "ChessBase"]
[SourceQuality "1"]
[TimeControl "40/4500+30:900+30"]

{[%evp 12,62,18,2,7,0,24,11,12,-52,0,-43,20,-18,-38,-40,-35,-44,0,0,13,-14,20,15,13,0,0,0,0,0,0,-133,-122,-133,-123,-156,-150,-178,-159,-155,-167,-152,-170,-152,-120,-583,-578,-634,-623,-1002,-910,-29997,-29998]} 1. e4 {[%emt 0:00:00]} c5 {[%emt 0:00:00]} 2. Nf3 {[%emt 0:00:00]} d6 {[%emt 0:00:00]} 3. d4 {[%emt 0:00:00]} cxd4 {[%emt 0:00:00]} 4. Nxd4 {[%emt 0:00:00]} Nf6 {[%emt 0:00:00]} 5. Nc3 {[%emt 0:00:00]} a6 {[%emt 0:00:00]} 6. h3 {[%emt 0:00:00]} e5 {[%emt 0:00:00]} 7. Nb3 {[%emt 0:00:00]} Be7 {[%emt 0:00:00] B90: Sicilian Najdorf: Unusual White 6th moves, 6 Be3 Ng4 and 6 Be3 e5.} 8. Be3 {[%emt 0:00:00] 8.g4 is the fancy move.} h6 {[%emt 0:00:00]} 9. Qf3 {[%emt 0:00:00]} b5 {[%emt 0:00:00] The position is equal.} 10. O-O-O {[%emt 0:02:31]} ({White should try} 10. Bd3 $11) 10... Nbd7 {[%emt 0:02:41]} (10... b4 $1 $15 11. Nd5 Nxd5 12. exd5 (12. Rxd5 O-O $15) 12... O-O) 11. g4 {[%emt 0:03:36]} Bb7 {[%emt 0:03:03] [#]} ({Black should play} 11... b4 $15 12. Nd5 Nxd5 13. exd5 O-O) 12. Kb1 $146 {[%emt 0:03:08]} ({Predecessor:} 12. h4 b4 13. Nd5 Nxd5 14. exd5 Bxh4 15. Qe4 Kf8 16. Qxb4 Rb8 17. Na5 Bc8 18. Qa3 {1-0 (30) Ivanov,O (2429)-Drygalov,A (2485) Moscow 2019}) 12... Rc8 {[%emt 0:02:56][%cal Oc8c3] [#] ...Rxc3! is the strong threat.} 13. Nd5 {[%emt 0:02:55]} Nxd5 {[%emt 0:03:04]} 14. exd5 {[%emt 0:00:07]} Nf6 {[%emt 0:02:21]} 15. Bg2 {[%emt 0:18:29]} e4 {[%emt 0:09:56]} 16. Qg3 {[%emt 0:04:43]} Bxd5 {[%emt 0:07:39][%cal Bb7d5,Bd5e6,Be6g4][%mdl 32]} 17. h4 {[%emt 0:05:02] [#] Strongly threatening g5.} Be6 {[%emt 0:08:32]} 18. Nd4 {[%emt 0:04:59]} Bxg4 {[%emt 0:07:07]} 19. f3 {[%emt 0:01:09]} exf3 {[%emt 0:01:35]} 20. Bxf3 {[%emt 0:00:10]} Qd7 {[%emt 0:02:47]} 21. Rhg1 {[%emt 0:01:37]} (21. h5 $1 $11) 21... h5 $17 {[%emt 0:02:46]} 22. Bg5 {[%emt 0:01:13]} O-O {[%emt 0:01:49][%cal Bh8f8,Bf8e8,Be8e3,Be3e1][%mdl 32]} 23. Qf4 {[%emt 0:04:35]} Rc4 {[%emt 0:04:38]} 24. b3 {[%emt 0:06:24]} Rc5 {[%emt 0:00:34]} 25. Bxf6 Bxf6 {[%emt 0:00:16]} 26. Bxg4 {[%emt 0:05:09]} hxg4 {[%emt 0:00:39]} 27. Rxg4 Re8 {[%emt 0:02:02]} 28. Nf3 $2 {[%emt 0:05:53][%mdl 8192] White does not recover from this.} (28. Qf3 $17) 28... Rf5 $19 {[%emt 0:03:42]} 29. Qg3 Re3 {[%emt 0:01:56]} 30. Rxd6 {[%emt 0:06:50]} Rfxf3 {[%emt 0:00:39]} 31. Qxf3 {[%emt 0:00:33]} Re1+ {[%emt 0:00:07] Weighted Error Value: White=0.88/Black=0.17 (very precise)} 0-1